[Event "Titled Tuesday Blitz August 08 Late 2023"]
[White "Smiechu"]
[Black "Koc, Przemyslaw"]
[BlackFideId "1109081"]
[WhiteElo "2353"]
[BlackElo "2501"]
[Result "1-0"]
[Round "7"]
[TimeControl "180+1"]
[Date "2023.08.08"]
[WhiteClock "0:00:20"]
[BlackClock "0:00:17"]
[Board "106"]

1. e4 {[%clk 0:03:00]}  d6 {[%clk 0:03:00]} 2. d4 {[%clk 0:03:00]}  Nf6 {[%clk 0:03:00]} 3. Nc3 {[%clk 0:03:00]}  e5 {[%clk 0:03:00]} 4. Nf3 {[%clk 0:02:59]}  Nbd7 {[%clk 0:02:59]} 5. g4 {[%clk 0:02:59]}  Nxg4 {[%clk 0:02:58]} 6. Rg1 {[%clk 0:02:59]}  Ngf6 {[%clk 0:02:57]} 7. Bc4 {[%clk 0:03:00]}  h6 {[%clk 0:02:56]} 8. Be3 {[%clk 0:02:59]}  c6 {[%clk 0:02:56]} 9. Qd3 {[%clk 0:02:59]}  b5 {[%clk 0:02:56]} 10. Bb3 {[%clk 0:02:59]}  Qa5 {[%clk 0:02:54]} 11. dxe5 {[%clk 0:02:59]}  dxe5 {[%clk 0:02:54]} 12. O-O-O {[%clk 0:02:58]}  b4 {[%clk 0:02:46]} 13. Bxf7+ {[%clk 0:02:26]}  Kxf7 {[%clk 0:02:44]} 14. Qc4+ {[%clk 0:02:26]}  Ke7 {[%clk 0:02:39]} 15. Nh4 {[%clk 0:01:56]}  bxc3 {[%clk 0:02:32]} 16. Ng6+ {[%clk 0:01:55]}  Kd8 {[%clk 0:02:30]} 17. Nxh8 {[%clk 0:01:54]}  cxb2+ {[%clk 0:02:17]} 18. Kb1 {[%clk 0:01:53]}  Kc7 {[%clk 0:02:09]} 19. Ng6 {[%clk 0:01:52]}  Bc5 {[%clk 0:01:54]} 20. Nxe5 {[%clk 0:01:39]}  Nxe5 {[%clk 0:01:38]} 21. Rxg7+ {[%clk 0:01:38]}  Nfd7 {[%clk 0:01:32]} 22. Qxc5 {[%clk 0:01:27]}  Qxc5 {[%clk 0:01:30]} 23. Bxc5 {[%clk 0:01:27]}  Nc4 {[%clk 0:01:13]} 24. Rd4 {[%clk 0:01:20]}  Nb6 {[%clk 0:01:13]} 25. e5 {[%clk 0:01:18]}  Kb8 {[%clk 0:01:03]} 26. Bd6+ {[%clk 0:01:18]}  Kb7 {[%clk 0:01:03]} 27. e6 {[%clk 0:01:18]}  c5 {[%clk 0:01:01]} 28. e7 {[%clk 0:01:13]}  cxd4 {[%clk 0:00:55]} 29. e8=Q {[%clk 0:01:14]}  Kc6 {[%clk 0:00:55]} 30. Bb4 {[%clk 0:01:06]}  a5 {[%clk 0:00:49]} 31. Qe6+ {[%clk 0:01:04]}  Kb5 {[%clk 0:00:49]} 32. Be7 {[%clk 0:00:44]}  a4 {[%clk 0:00:47]} 33. Rf7 {[%clk 0:00:40]}  a3 {[%clk 0:00:47]} 34. Rf5+ {[%clk 0:00:40]}  Ka6 {[%clk 0:00:46]} 35. Bxa3 {[%clk 0:00:39]}  Nc5 {[%clk 0:00:38]} 36. Qc6 {[%clk 0:00:35]}  Bxf5 {[%clk 0:00:36]} 37. Bxc5 {[%clk 0:00:32]}  Rb8 {[%clk 0:00:29]} 38. Kxb2 {[%clk 0:00:32]}  Ka5 {[%clk 0:00:27]} 39. Kc1 {[%clk 0:00:25]}  Na4 {[%clk 0:00:24]} 40. Qc7+ {[%clk 0:00:24]}  Kb5 {[%clk 0:00:22]} 41. Qxb8+ {[%clk 0:00:24]}  Kxc5 {[%clk 0:00:22]} 42. Qa7+ {[%clk 0:00:24]}  Kb4 {[%clk 0:00:22]} 43. Qxd4+ {[%clk 0:00:24]}  Ka3 {[%clk 0:00:21]} 44. Qe3+ {[%clk 0:00:20]}  Kb4 {[%clk 0:00:17]} 45. Qf4+ {[%clk 0:00:20]} 1-0


[Site "https://www.chess.com"]

[Event "Titled Tuesday Blitz August 08 Late 2023"]
[White "Mickiewicz, Piotr"]
[Black "Kukavica, Tony"]
[WhiteFideId "1114891"]
[BlackFideId "2062542"]
[WhiteElo "2491"]
[BlackElo "2336"]
[Result "0-1"]
[Round "7"]
[TimeControl "180+1"]
[Date "2023.08.08"]
[WhiteClock "0:00:13"]
[BlackClock "0:00:05"]
[Board "107"]

1. Nf3 {[%clk 0:03:00]}  d5 {[%clk 0:02:49]} 2. g3 {[%clk 0:03:01]}  Nf6 {[%clk 0:02:49]} 3. Bg2 {[%clk 0:03:01]}  g6 {[%clk 0:02:50]} 4. O-O {[%clk 0:03:02]}  Bg7 {[%clk 0:02:50]} 5. b3 {[%clk 0:03:01]}  O-O {[%clk 0:02:51]} 6. Bb2 {[%clk 0:03:02]}  c5 {[%clk 0:02:46]} 7. e3 {[%clk 0:03:01]}  Nc6 {[%clk 0:02:46]} 8. Qe2 {[%clk 0:03:00]}  Bg4 {[%clk 0:02:43]} 9. h3 {[%clk 0:02:59]}  Bxf3 {[%clk 0:02:41]} 10. Bxf3 {[%clk 0:02:56]}  e5 {[%clk 0:02:42]} 11. d3 {[%clk 0:02:55]}  e4 {[%clk 0:02:35]} 12. Bg2 {[%clk 0:02:54]}  Qe7 {[%clk 0:02:33]} 13. Nd2 {[%clk 0:02:52]}  exd3 {[%clk 0:02:12]} 14. cxd3 {[%clk 0:02:53]}  Qe6 {[%clk 0:01:51]} 15. Rac1 {[%clk 0:02:49]}  Nd7 {[%clk 0:01:48]} 16. Bxg7 {[%clk 0:02:36]}  Kxg7 {[%clk 0:01:49]} 17. Qf3 {[%clk 0:02:35]}  Ne7 {[%clk 0:01:22]} 18. Rc2 {[%clk 0:02:17]}  Ne5 {[%clk 0:01:21]} 19. Qe2 {[%clk 0:02:17]}  b6 {[%clk 0:01:14]} 20. Rfc1 {[%clk 0:02:04]}  N7c6 {[%clk 0:01:05]} 21. a3 {[%clk 0:01:54]}  Rae8 {[%clk 0:00:53]} 22. b4 {[%clk 0:01:16]}  Nd7 {[%clk 0:00:49]} 23. bxc5 {[%clk 0:01:12]}  Nd4 {[%clk 0:00:48]} 24. Qd1 {[%clk 0:00:56]}  Nxc2 {[%clk 0:00:47]} 25. Qxc2 {[%clk 0:00:50]}  bxc5 {[%clk 0:00:45]} 26. Qb3 {[%clk 0:00:50]}  d4 {[%clk 0:00:39]} 27. Qxe6 {[%clk 0:00:49]}  Rxe6 {[%clk 0:00:38]} 28. e4 {[%clk 0:00:47]}  Ra6 {[%clk 0:00:16]} 29. Nc4 {[%clk 0:00:45]}  Rb8 {[%clk 0:00:13]} 30. f4 {[%clk 0:00:43]}  Nb6 {[%clk 0:00:12]} 31. Bf1 {[%clk 0:00:43]}  Nxc4 {[%clk 0:00:12]} 32. Rxc4 {[%clk 0:00:43]}  Rb1 {[%clk 0:00:10]} 33. a4 {[%clk 0:00:37]}  Ra1 {[%clk 0:00:03]} 34. Rxc5 {[%clk 0:00:35]}  R6xa4 {[%clk 0:00:04]} 35. Rc2 {[%clk 0:00:35]}  R4a2 {[%clk 0:00:04]} 36. Rf2 {[%clk 0:00:07]}  Rxf2 {[%clk 0:00:04]} 37. Kxf2 {[%clk 0:00:08]}  a5 {[%clk 0:00:05]} 38. e5 {[%clk 0:00:07]}  a4 {[%clk 0:00:05]} 39. g4 {[%clk 0:00:08]}  a3 {[%clk 0:00:05]} 40. f5 {[%clk 0:00:09]}  gxf5 {[%clk 0:00:05]} 41. gxf5 {[%clk 0:00:09]}  a2 {[%clk 0:00:06]} 42. Bg2 {[%clk 0:00:09]}  Rb1 {[%clk 0:00:06]} 43. f6+ {[%clk 0:00:09]}  Kf8 {[%clk 0:00:06]} 44. e6 {[%clk 0:00:09]}  fxe6 {[%clk 0:00:05]} 45. Be4 {[%clk 0:00:07]}  a1=Q {[%clk 0:00:05]} 46. Kg3 {[%clk 0:00:07]}  Rb2 {[%clk 0:00:05]} 47. Kf4 {[%clk 0:00:08]}  Qf1+ {[%clk 0:00:05]} 48. Ke5 {[%clk 0:00:09]}  Qe1 {[%clk 0:00:05]} 49. Kd6 {[%clk 0:00:10]}  Rb6+ {[%clk 0:00:04]} 50. Kc5 {[%clk 0:00:09]}  Rb2 {[%clk 0:00:03]} 51. Kxd4 {[%clk 0:00:10]}  Rf2 {[%clk 0:00:04]} 52. Ke5 {[%clk 0:00:11]}  Qf1 {[%clk 0:00:04]} 53. Kd6 {[%clk 0:00:12]}  Rxf6 {[%clk 0:00:04]} 54. Kd7 {[%clk 0:00:12]}  Kg7 {[%clk 0:00:05]} 55. h4 {[%clk 0:00:12]}  Rf4 {[%clk 0:00:05]} 56. h5 {[%clk 0:00:13]}  Rxe4 {[%clk 0:00:06]} 57. h6+ {[%clk 0:00:14]}  Kxh6 {[%clk 0:00:06]} 58. Kd6 {[%clk 0:00:13]}  Qxd3+ {[%clk 0:00:05]} 0-1


[Site "https://www.chess.com"]

[Event "Titled Tuesday Blitz August 08 Late 2023"]
[White "Osmak, Yuliia"]
[Black "Ai, Evan"]
[WhiteFideId "14101602"]
[BlackFideId "2094770"]
[WhiteElo "2485"]
[BlackElo "2331"]
[Result "1-0"]
[Round "7"]
[TimeControl "180+1"]
[Date "2023.08.08"]
[WhiteClock "0:01:01"]
[BlackClock "0:00:02"]
[Board "108"]

1. e4 {[%clk 0:03:00]}  e5 {[%clk 0:02:50]} 2. Nf3 {[%clk 0:03:00]}  Nc6 {[%clk 0:02:49]} 3. Bc4 {[%clk 0:02:59]}  Nf6 {[%clk 0:02:47]} 4. d3 {[%clk 0:02:59]}  h6 {[%clk 0:02:47]} 5. O-O {[%clk 0:02:45]}  Bc5 {[%clk 0:02:43]} 6. c3 {[%clk 0:02:37]}  d6 {[%clk 0:02:41]} 7. d4 {[%clk 0:02:36]}  Bb6 {[%clk 0:02:35]} 8. d5 {[%clk 0:02:21]}  Ne7 {[%clk 0:02:32]} 9. Nbd2 {[%clk 0:02:19]}  a6 {[%clk 0:02:30]} 10. a4 {[%clk 0:02:13]}  g5 {[%clk 0:02:29]} 11. Ne1 {[%clk 0:02:12]}  Ng6 {[%clk 0:02:28]} 12. a5 {[%clk 0:02:07]}  Ba7 {[%clk 0:02:26]} 13. b4 {[%clk 0:02:03]}  Nf4 {[%clk 0:02:12]} 14. Qc2 {[%clk 0:01:59]}  Ng4 {[%clk 0:02:05]} 15. Ndf3 {[%clk 0:01:52]}  Qf6 {[%clk 0:01:38]} 16. b5 {[%clk 0:01:41]}  axb5 {[%clk 0:01:24]} 17. Bxb5+ {[%clk 0:01:40]}  Ke7 {[%clk 0:01:17]} 18. h3 {[%clk 0:01:39]}  Nxf2 {[%clk 0:01:14]} 19. Rxf2 {[%clk 0:01:38]}  Bxh3 {[%clk 0:01:14]} 20. Bxf4 {[%clk 0:01:34]}  gxf4 {[%clk 0:01:08]} 21. gxh3 {[%clk 0:01:34]}  Rhg8+ {[%clk 0:01:08]} 22. Kh2 {[%clk 0:01:23]}  Bxf2 {[%clk 0:00:54]} 23. Qxf2 {[%clk 0:01:22]}  Rg3 {[%clk 0:00:52]} 24. Ng2 {[%clk 0:01:15]}  Rag8 {[%clk 0:00:44]} 25. Ngh4 {[%clk 0:01:13]}  Kd8 {[%clk 0:00:38]} 26. a6 {[%clk 0:01:07]}  bxa6 {[%clk 0:00:36]} 27. Rxa6 {[%clk 0:01:07]}  Ke7 {[%clk 0:00:22]} 28. Nf5+ {[%clk 0:01:05]}  Qxf5 {[%clk 0:00:17]} 29. exf5 {[%clk 0:01:05]}  e4 {[%clk 0:00:13]} 30. Nd4 {[%clk 0:01:02]}  e3 {[%clk 0:00:09]} 31. f6+ {[%clk 0:01:01]}  Kxf6 {[%clk 0:00:06]} 32. Qxf4+ {[%clk 0:01:01]}  Ke7 {[%clk 0:00:02]} 33. Nf5+ {[%clk 0:01:01]} 1-0


[Site "https://www.chess.com"]

[Event "Titled Tuesday Blitz August 08 Late 2023"]
[White "Kohler, Aran"]
[Black "Ingunza Curro, Andres"]
[WhiteFideId "1002856"]
[BlackFideId "24526371"]
[WhiteElo "2269"]
[BlackElo "2433"]
[Result "0-1"]
[Round "7"]
[TimeControl "180+1"]
[Date "2023.08.08"]
[WhiteClock "0:00:48"]
[BlackClock "0:01:23"]
[Board "111"]

1. d4 {[%clk 0:03:00]}  d5 {[%clk 0:02:57]} 2. Nf3 {[%clk 0:03:00]}  Nf6 {[%clk 0:02:56]} 3. Bg5 {[%clk 0:02:59]}  e6 {[%clk 0:02:56]} 4. e3 {[%clk 0:02:58]}  Be7 {[%clk 0:02:56]} 5. Bd3 {[%clk 0:02:58]}  b6 {[%clk 0:02:57]} 6. c3 {[%clk 0:02:55]}  Bb7 {[%clk 0:02:57]} 7. Nbd2 {[%clk 0:02:53]}  O-O {[%clk 0:02:57]} 8. Qc2 {[%clk 0:02:46]}  h6 {[%clk 0:02:57]} 9. Bxf6 {[%clk 0:02:30]}  Bxf6 {[%clk 0:02:58]} 10. e4 {[%clk 0:02:29]}  dxe4 {[%clk 0:02:56]} 11. Nxe4 {[%clk 0:02:29]}  Be7 {[%clk 0:02:56]} 12. O-O-O {[%clk 0:02:27]}  Nd7 {[%clk 0:02:48]} 13. Kb1 {[%clk 0:02:27]}  Nf6 {[%clk 0:02:46]} 14. Ne5 {[%clk 0:02:18]}  Nd5 {[%clk 0:02:31]} 15. Rhe1 {[%clk 0:02:02]}  c5 {[%clk 0:02:25]} 16. dxc5 {[%clk 0:02:00]}  Qc7 {[%clk 0:02:21]} 17. Nd6 {[%clk 0:01:49]}  bxc5 {[%clk 0:02:16]} 18. Nxb7 {[%clk 0:01:47]}  Qxb7 {[%clk 0:02:12]} 19. Bh7+ {[%clk 0:01:47]}  Kh8 {[%clk 0:02:11]} 20. Be4 {[%clk 0:01:47]}  Rab8 {[%clk 0:02:08]} 21. c4 {[%clk 0:01:44]}  Bf6 {[%clk 0:02:04]} 22. f4 {[%clk 0:01:29]}  Nb4 {[%clk 0:01:43]} 23. Qb3 {[%clk 0:01:18]}  Qc7 {[%clk 0:01:38]} 24. Nd7 {[%clk 0:01:16]}  Nc6 {[%clk 0:01:28]} 25. Nxb8 {[%clk 0:01:12]}  Rxb8 {[%clk 0:01:29]} 26. Qa4 {[%clk 0:00:59]}  Rxb2+ {[%clk 0:01:23]} 27. Kc1 {[%clk 0:00:48]}  Qxf4+ {[%clk 0:01:23]} 0-1


[Site "https://www.chess.com"]

[Event "Titled Tuesday Blitz August 08 Late 2023"]
[White "Gerbelli Neto, Eduardo"]
[Black "Mendez Fortes, Eduardo Jesus"]
[WhiteFideId "2103281"]
[BlackFideId "3502376"]
[WhiteElo "2322"]
[BlackElo "2539"]
[Result "0-1"]
[Round "7"]
[TimeControl "180+1"]
[Date "2023.08.08"]
[WhiteClock "0:00:09"]
[BlackClock "0:00:40"]
[Board "113"]

1. e4 {[%clk 0:03:00]}  c5 {[%clk 0:02:54]} 2. Nc3 {[%clk 0:03:00]}  d6 {[%clk 0:02:54]} 3. Nf3 {[%clk 0:02:56]}  Nf6 {[%clk 0:02:53]} 4. Bb5+ {[%clk 0:02:54]}  Nbd7 {[%clk 0:02:49]} 5. e5 {[%clk 0:02:52]}  dxe5 {[%clk 0:02:47]} 6. Nxe5 {[%clk 0:02:48]}  a6 {[%clk 0:02:43]} 7. Bxd7+ {[%clk 0:02:48]}  Nxd7 {[%clk 0:02:43]} 8. d4 {[%clk 0:02:44]}  cxd4 {[%clk 0:02:33]} 9. Qxd4 {[%clk 0:02:44]}  Nxe5 {[%clk 0:02:28]} 10. Qxe5 {[%clk 0:02:44]}  f6 {[%clk 0:02:26]} 11. Qe4 {[%clk 0:02:36]}  e5 {[%clk 0:02:26]} 12. Be3 {[%clk 0:02:31]}  Be6 {[%clk 0:02:25]} 13. O-O {[%clk 0:02:27]}  Qc8 {[%clk 0:02:22]} 14. f4 {[%clk 0:02:00]}  exf4 {[%clk 0:02:19]} 15. Bxf4 {[%clk 0:01:53]}  Kf7 {[%clk 0:02:16]} 16. Rae1 {[%clk 0:01:46]}  Qc6 {[%clk 0:02:14]} 17. Qxc6 {[%clk 0:01:27]}  bxc6 {[%clk 0:02:14]} 18. b3 {[%clk 0:01:27]}  Bb4 {[%clk 0:02:10]} 19. Rf3 {[%clk 0:01:17]}  Rhe8 {[%clk 0:02:09]} 20. Ref1 {[%clk 0:01:07]}  Rad8 {[%clk 0:02:04]} 21. h3 {[%clk 0:01:01]}  Rd7 {[%clk 0:02:02]} 22. Na4 {[%clk 0:00:58]}  Red8 {[%clk 0:01:54]} 23. c4 {[%clk 0:00:58]}  Rd1 {[%clk 0:01:49]} 24. Bc7 {[%clk 0:00:49]}  Rxf1+ {[%clk 0:01:44]} 25. Rxf1 {[%clk 0:00:49]}  Rd2 {[%clk 0:01:44]} 26. Rf2 {[%clk 0:00:47]}  Rxf2 {[%clk 0:01:41]} 27. Kxf2 {[%clk 0:00:48]}  Bf5 {[%clk 0:01:41]} 28. Bb6 {[%clk 0:00:26]}  Bb1 {[%clk 0:01:39]} 29. Nc5 {[%clk 0:00:27]}  Bxc5+ {[%clk 0:01:34]} 30. Bxc5 {[%clk 0:00:28]}  Bxa2 {[%clk 0:01:35]} 31. b4 {[%clk 0:00:28]}  Bxc4 {[%clk 0:01:35]} 32. g3 {[%clk 0:00:28]}  Ke6 {[%clk 0:01:32]} 33. Ke3 {[%clk 0:00:28]}  Kd5 {[%clk 0:01:31]} 34. h4 {[%clk 0:00:29]}  a5 {[%clk 0:01:31]} 35. Bf8 {[%clk 0:00:22]}  a4 {[%clk 0:01:25]} 36. Bxg7 {[%clk 0:00:22]}  Ke6 {[%clk 0:01:22]} 37. g4 {[%clk 0:00:20]}  a3 {[%clk 0:01:21]} 38. g5 {[%clk 0:00:21]}  fxg5 {[%clk 0:01:21]} 39. hxg5 {[%clk 0:00:21]}  Kf5 {[%clk 0:01:17]} 40. Bf6 {[%clk 0:00:19]}  h5 {[%clk 0:01:16]} 41. Kf3 {[%clk 0:00:18]}  h4 {[%clk 0:01:15]} 42. Kg2 {[%clk 0:00:18]}  Kg4 {[%clk 0:01:13]} 43. g6 {[%clk 0:00:17]}  a2 {[%clk 0:01:06]} 44. g7 {[%clk 0:00:15]}  Be6 {[%clk 0:00:51]} 45. Bd4 {[%clk 0:00:14]}  Kf4 {[%clk 0:00:47]} 46. Kf2 {[%clk 0:00:13]}  Ke4 {[%clk 0:00:47]} 47. Bf6 {[%clk 0:00:14]}  Kd3 {[%clk 0:00:41]} 48. Kf3 {[%clk 0:00:09]}  Kc4 {[%clk 0:00:40]} 0-1


[Site "https://www.chess.com"]

[Event "Titled Tuesday Blitz August 08 Late 2023"]
[White "Michalczak, Thomas"]
[Black "Shapiro, Daniel"]
[WhiteFideId "4622634"]
[BlackFideId "2001780"]
[WhiteElo "2482"]
[BlackElo "2322"]
[Result "1-0"]
[Round "7"]
[TimeControl "180+1"]
[Date "2023.08.08"]
[WhiteClock "0:01:20"]
[BlackClock "0:00:00"]
[Board "114"]

1. e4 {[%clk 0:03:00]}  c5 {[%clk 0:02:59]} 2. c3 {[%clk 0:03:00]}  g6 {[%clk 0:02:58]} 3. d4 {[%clk 0:02:59]}  cxd4 {[%clk 0:02:58]} 4. cxd4 {[%clk 0:03:00]}  d5 {[%clk 0:02:58]} 5. e5 {[%clk 0:03:01]}  Nc6 {[%clk 0:02:56]} 6. Nc3 {[%clk 0:03:02]}  Bg7 {[%clk 0:02:48]} 7. h3 {[%clk 0:03:01]}  Nh6 {[%clk 0:02:37]} 8. g4 {[%clk 0:03:01]}  f6 {[%clk 0:02:32]} 9. f4 {[%clk 0:03:01]}  O-O {[%clk 0:02:29]} 10. Nf3 {[%clk 0:03:01]}  Be6 {[%clk 0:02:22]} 11. Bg2 {[%clk 0:03:00]}  Nf7 {[%clk 0:02:17]} 12. O-O {[%clk 0:03:00]}  a6 {[%clk 0:02:11]} 13. Be3 {[%clk 0:02:59]}  Rc8 {[%clk 0:02:04]} 14. Qd2 {[%clk 0:02:54]}  Na5 {[%clk 0:01:53]} 15. b3 {[%clk 0:02:54]}  b5 {[%clk 0:01:26]} 16. Rf2 {[%clk 0:02:50]}  Nc6 {[%clk 0:01:16]} 17. Raf1 {[%clk 0:02:45]}  Qa5 {[%clk 0:01:07]} 18. f5 {[%clk 0:02:16]}  gxf5 {[%clk 0:01:01]} 19. gxf5 {[%clk 0:02:17]}  Bxf5 {[%clk 0:00:57]} 20. Nxd5 {[%clk 0:02:15]}  Qxd2 {[%clk 0:00:53]} 21. Nxd2 {[%clk 0:02:13]}  Bd3 {[%clk 0:00:47]} 22. exf6 {[%clk 0:02:12]}  exf6 {[%clk 0:00:36]} 23. Rc1 {[%clk 0:02:07]}  Nfd8 {[%clk 0:00:20]} 24. Nb6 {[%clk 0:01:34]}  Rb8 {[%clk 0:00:11]} 25. Nd7 {[%clk 0:01:33]}  Rc8 {[%clk 0:00:09]} 26. Nxf8 {[%clk 0:01:32]}  Kxf8 {[%clk 0:00:09]} 27. d5 {[%clk 0:01:21]}  Ne7 {[%clk 0:00:09]} 28. Rxc8 {[%clk 0:01:22]}  Nxc8 {[%clk 0:00:08]} 29. Bc5+ {[%clk 0:01:23]}  Kf7 {[%clk 0:00:08]} 30. Nf3 {[%clk 0:01:21]}  Nb7 {[%clk 0:00:08]} 31. Ne5+ {[%clk 0:01:20]}  Ke8 {[%clk 0:00:00]} 32. Nxd3 {[%clk 0:01:20]} 1-0


[Site "https://www.chess.com"]

[Event "Titled Tuesday Blitz August 08 Late 2023"]
[White "JERO-8914"]
[Black "Skaric, Djuro"]
[BlackFideId "934569"]
[WhiteElo "2451"]
[BlackElo "2319"]
[Result "0-1"]
[Round "7"]
[TimeControl "180+1"]
[Date "2023.08.08"]
[WhiteClock "0:00:00"]
[BlackClock "0:01:39"]
[Board "116"]

1. d4 {[%clk 0:03:00]}  d6 {[%clk 0:03:00]} 2. Nf3 {[%clk 0:02:54]}  g6 {[%clk 0:03:00]} 3. e4 {[%clk 0:02:54]}  Bg7 {[%clk 0:03:01]} 4. Bc4 {[%clk 0:02:54]}  Nf6 {[%clk 0:03:01]} 5. Qe2 {[%clk 0:02:53]}  O-O {[%clk 0:03:01]} 6. h3 {[%clk 0:02:53]}  Nc6 {[%clk 0:03:00]} 7. O-O {[%clk 0:02:48]}  e5 {[%clk 0:02:58]} 8. dxe5 {[%clk 0:02:46]}  dxe5 {[%clk 0:02:58]} 9. a4 {[%clk 0:02:34]}  h6 {[%clk 0:02:57]} 10. a5 {[%clk 0:02:30]}  a6 {[%clk 0:02:57]} 11. c3 {[%clk 0:02:23]}  Nh5 {[%clk 0:02:56]} 12. Rd1 {[%clk 0:02:19]}  Qe7 {[%clk 0:02:55]} 13. Na3 {[%clk 0:02:06]}  Nf4 {[%clk 0:02:55]} 14. Bxf4 {[%clk 0:02:05]}  exf4 {[%clk 0:02:54]} 15. Nc2 {[%clk 0:02:04]}  Ne5 {[%clk 0:02:52]} 16. Nxe5 {[%clk 0:01:56]}  Bxe5 {[%clk 0:02:52]} 17. Nd4 {[%clk 0:01:49]}  Kh7 {[%clk 0:02:49]} 18. Nf3 {[%clk 0:01:43]}  Bg7 {[%clk 0:02:48]} 19. Qd2 {[%clk 0:01:29]}  g5 {[%clk 0:02:39]} 20. Nd4 {[%clk 0:01:16]}  Kh8 {[%clk 0:02:37]} 21. Nf5 {[%clk 0:01:08]}  Qxe4 {[%clk 0:02:30]} 22. Bd3 {[%clk 0:01:04]}  Qe5 {[%clk 0:02:29]} 23. Nxg7 {[%clk 0:01:02]}  Kxg7 {[%clk 0:02:25]} 24. Re1 {[%clk 0:01:02]}  Qf6 {[%clk 0:02:25]} 25. Qe2 {[%clk 0:00:36]}  Bf5 {[%clk 0:02:23]} 26. Bxf5 {[%clk 0:00:35]}  Qxf5 {[%clk 0:02:23]} 27. Qe7 {[%clk 0:00:31]}  Rac8 {[%clk 0:02:21]} 28. Rad1 {[%clk 0:00:26]}  Qf6 {[%clk 0:02:20]} 29. Qxf6+ {[%clk 0:00:25]}  Kxf6 {[%clk 0:02:19]} 30. Rd7 {[%clk 0:00:26]}  Rfd8 {[%clk 0:02:19]} 31. Ree7 {[%clk 0:00:18]}  Rxd7 {[%clk 0:02:19]} 32. Rxd7 {[%clk 0:00:17]}  Ke6 {[%clk 0:02:20]} 33. Rd4 {[%clk 0:00:17]}  h5 {[%clk 0:02:19]} 34. Kf1 {[%clk 0:00:17]}  f5 {[%clk 0:02:18]} 35. Ke2 {[%clk 0:00:17]}  c5 {[%clk 0:02:18]} 36. Rd1 {[%clk 0:00:11]}  Rc7 {[%clk 0:02:18]} 37. Re1 {[%clk 0:00:10]}  Rd7 {[%clk 0:02:17]} 38. Ra1 {[%clk 0:00:09]}  Kd5 {[%clk 0:02:16]} 39. Rd1+ {[%clk 0:00:09]}  Kc6 {[%clk 0:02:16]} 40. Ra1 {[%clk 0:00:08]}  Kb5 {[%clk 0:02:12]} 41. Ra3 {[%clk 0:00:08]}  c4 {[%clk 0:02:08]} 42. Ra1 {[%clk 0:00:08]}  Rd3 {[%clk 0:02:04]} 43. Ra3 {[%clk 0:00:08]}  Kc5 {[%clk 0:02:00]} 44. Ra4 {[%clk 0:00:08]}  g4 {[%clk 0:01:57]} 45. Rb4 {[%clk 0:00:08]}  f3+ {[%clk 0:01:55]} 46. gxf3 {[%clk 0:00:07]}  Rxf3 {[%clk 0:01:55]} 47. hxg4 {[%clk 0:00:06]}  fxg4 {[%clk 0:01:47]} 48. Rxb7 {[%clk 0:00:07]}  Rh3 {[%clk 0:01:47]} 49. Rb6 {[%clk 0:00:06]}  Rh2 {[%clk 0:01:46]} 50. Rxa6 {[%clk 0:00:06]}  Kb5 {[%clk 0:01:43]} 51. Ra8 {[%clk 0:00:05]}  g3 {[%clk 0:01:43]} 52. Rf8 {[%clk 0:00:04]}  g2 {[%clk 0:01:43]} 53. Rg8 {[%clk 0:00:04]}  h4 {[%clk 0:01:42]} 54. Kf3 {[%clk 0:00:03]}  h3 {[%clk 0:01:42]} 55. Rg5+ {[%clk 0:00:04]}  Ka6 {[%clk 0:01:41]} 56. Rg6+ {[%clk 0:00:03]}  Kxa5 {[%clk 0:01:41]} 57. Rg4 {[%clk 0:00:03]}  Rh1 {[%clk 0:01:40]} 58. Rg5+ {[%clk 0:00:02]}  Ka4 {[%clk 0:01:39]} 59. Ke4 {[%clk 0:00:00]}  g1=Q {[%clk 0:01:39]} 0-1


[Site "https://www.chess.com"]

[Event "Titled Tuesday Blitz August 08 Late 2023"]
[White "chessmateto"]
[Black "Lopez Idarraga, Daniel Eduardo"]
[BlackFideId "4405501"]
[WhiteElo "2417"]
[BlackElo "2318"]
[Result "0-1"]
[Round "7"]
[TimeControl "180+1"]
[Date "2023.08.08"]
[WhiteClock "0:00:39"]
[BlackClock "0:02:01"]
[Board "118"]

1. c4 {[%clk 0:03:00]}  e6 {[%clk 0:02:58]} 2. d4 {[%clk 0:03:00]}  d5 {[%clk 0:02:58]} 3. Nf3 {[%clk 0:03:00]}  dxc4 {[%clk 0:02:58]} 4. g3 {[%clk 0:02:55]}  Nf6 {[%clk 0:02:59]} 5. Bg2 {[%clk 0:02:54]}  a6 {[%clk 0:03:00]} 6. O-O {[%clk 0:02:52]}  b5 {[%clk 0:02:58]} 7. Ne5 {[%clk 0:02:51]}  Nd5 {[%clk 0:02:58]} 8. e4 {[%clk 0:02:49]}  Nb6 {[%clk 0:02:57]} 9. b3 {[%clk 0:02:44]}  cxb3 {[%clk 0:02:57]} 10. axb3 {[%clk 0:02:41]}  Bb7 {[%clk 0:02:57]} 11. Nc3 {[%clk 0:02:33]}  N8d7 {[%clk 0:02:57]} 12. f4 {[%clk 0:02:29]}  Bb4 {[%clk 0:02:54]} 13. Bb2 {[%clk 0:02:23]}  O-O {[%clk 0:02:53]} 14. Kh1 {[%clk 0:02:21]}  c5 {[%clk 0:02:52]} 15. d5 {[%clk 0:02:17]}  Nxe5 {[%clk 0:02:49]} 16. fxe5 {[%clk 0:02:15]}  Bxc3 {[%clk 0:02:49]} 17. Bxc3 {[%clk 0:02:15]}  exd5 {[%clk 0:02:50]} 18. Qg4 {[%clk 0:01:57]}  d4 {[%clk 0:02:19]} 19. Bd2 {[%clk 0:01:56]}  Bc8 {[%clk 0:02:19]} 20. Qf3 {[%clk 0:01:47]}  Qe7 {[%clk 0:02:16]} 21. Bf4 {[%clk 0:01:35]}  Be6 {[%clk 0:02:16]} 22. h4 {[%clk 0:01:29]}  a5 {[%clk 0:02:14]} 23. h5 {[%clk 0:01:27]}  h6 {[%clk 0:02:13]} 24. g4 {[%clk 0:01:18]}  Qh4+ {[%clk 0:02:12]} 25. Bh3 {[%clk 0:01:18]}  a4 {[%clk 0:02:09]} 26. bxa4 {[%clk 0:01:11]}  Rxa4 {[%clk 0:02:10]} 27. Rab1 {[%clk 0:01:03]}  Nc4 {[%clk 0:02:08]} 28. Rxb5 {[%clk 0:00:58]}  Ra3 {[%clk 0:02:05]} 29. Rb3 {[%clk 0:00:52]}  Rxb3 {[%clk 0:02:05]} 30. Qxb3 {[%clk 0:00:39]}  Ne3 {[%clk 0:02:01]} 0-1


[Site "https://www.chess.com"]